bitfinex/quotes_BTCUSD_20241110
["timestamp","ask_amount","ask_price","bid_price","bid_amount"]
[1731250167191,0.0008,79238.0,79237.0,0.23094221]
[1731250167397,0.006678,79262.0,79248.0,0.005]
[1731250167398,0.18934254,79259.0,79248.0,0.005]
[1731250167623,0.18934254,79259.0,79237.0,0.29704221]
[1731250167624,0.18724254,79249.0,79246.0,0.1]
[1731250167828,0.19434254,79259.0,79246.0,0.1]
[1731250168076,0.19434254,79259.0,79248.0,0.1]
[1731250168207,0.005,79259.0,79249.0,0.12594221]
[1731250168400,0.005,79259.0,79250.0,0.1]
[1731250168631,0.005,79259.0,79252.0,0.1]
[1731250168827,0.005,79259.0,79253.0,0.12594221]
[1731250169252,0.006678,79262.0,79253.0,0.12594221]
[1731250169433,0.005,79260.0,79253.0,0.12594221]
[1731250169695,0.001682,79271.0,79256.0,0.1]
[1731250169696,0.18934254,79266.0,79256.0,0.1]
[1731250169921,0.18934254,79266.0,79257.0,0.12594221]
[1731250170121,0.001682,79271.0,79265.0,0.002]
[1731250170323,0.18934254,79269.0,79265.0,0.12794221]
[1731250170507,0.001682,79271.0,79265.0,0.12594221]
[1731250170701,0.001682,79271.0,79267.0,0.1]
[1731250170918,0.001682,79271.0,79268.0,0.12840029]
[1731250171242,0.001682,79271.0,79269.0,0.002]
[1731250171443,0.001682,79271.0,79269.0,0.22594221]
[1731250171912,0.001682,79271.0,79269.0,0.60640221]
[1731250172113,0.001682,79271.0,79269.0,0.60440221]
[1731250172351,0.001682,79279.0,79278.0,0.002]
[1731250172554,0.001682,79279.0,79278.0,0.22794221]
[1731250172760,0.001682,79279.0,79278.0,0.60888455]
[1731250173015,0.000715,79287.0,79286.0,0.002]
[1731250173261,0.000715,79287.0,79286.0,0.22794221]
[1731250173484,0.000715,79287.0,79286.0,0.60632221]
[1731250173717,0.000715,79300.0,79299.0,0.002]
[1731250174137,0.000715,79300.0,79299.0,0.38031]
[1731250174354,0.000715,79300.0,79299.0,0.50625221]
[1731250175033,0.000715,79300.0,79299.0,0.50425221]
[1731250175448,0.000715,79300.0,79299.0,0.60625221]
[1731250175674,0.000715,79300.0,79299.0,0.60425221]
[1731250175883,0.000715,79300.0,79299.0,0.60625221]
[1731250176305,0.000715,79300.0,79299.0,0.61125221]
[1731250176518,0.000715,79304.0,79303.0,0.002]
[1731250176753,0.000715,79304.0,79303.0,0.22794221]
[1731250177014,0.000715,79304.0,79303.0,0.60624221]
[1731250177233,0.005715,79304.0,79303.0,0.3783]
[1731250177703,0.131812,79304.0,79303.0,0.3783]
[1731250177927,0.005715,79304.0,79303.0,0.3783]
[1731250179744,0.005715,79304.0,79287.0,0.18934254]
[1731250179745,0.005,79289.0,79287.0,0.18934254]
[1731250180172,0.005,79289.0,79280.0,0.1]
[1731250180513,0.15408772,79294.0,79280.0,0.1]
[1731250180662,0.18934254,79293.0,79280.0,0.1]
[1731250180929,0.15408772,79286.0,79281.0,0.12594221]
[1731250181071,0.15408772,79286.0,79282.0,0.1]
[1731250183581,0.15408772,79286.0,79281.0,0.12594221]
[1731250183786,0.15576572,79286.0,79281.0,0.12594221]
[1731250183991,0.001678,79286.0,79282.0,0.002]
[1731250184245,0.001678,79286.0,79283.0,0.22594221]
[1731250186283,0.15408772,79284.0,79270.0,0.18934254]
[1731250186467,0.15408772,79284.0,79272.0,0.1]
[1731250186670,0.15408772,79284.0,79274.0,0.1]
[1731250186871,0.15408772,79284.0,79276.0,0.1]
[1731250187069,0.15408772,79284.0,79278.0,0.1]
[1731250187308,0.15408772,79284.0,79279.0,0.12594221]
[1731250188745,0.13108772,79284.0,79279.0,0.12594221]
[1731250189049,0.13108772,79284.0,79271.0,0.1]
[1731250189231,0.13108772,79284.0,79274.0,0.002]
[1731250189429,0.13108772,79284.0,79276.0,0.1]
[1731250189657,0.13108772,79284.0,79274.0,0.002]
[1731250189658,0.13108772,79284.0,79278.0,0.1]
[1731250189859,0.13108772,79284.0,79261.0,0.007]
[1731250189860,0.18934254,79279.0,79261.0,0.007]
[1731250190032,0.001678,79286.0,79269.0,0.18934254]
[1731250190232,0.15408772,79270.0,79269.0,0.18934254]
[1731250190640,0.15408772,79270.0,79261.0,0.005]
[1731250190845,0.15408772,79270.0,79260.0,0.18934254]
[1731250190846,0.15408772,79270.0,79260.0,0.19434254]
[1731250191025,0.15408772,79270.0,79261.0,0.1]
[1731250191828,0.15408772,79278.0,79261.0,0.1]
[1731250193042,0.03613943,79286.0,79271.0,0.002]
[1731250193190,0.15408772,79276.0,79270.0,0.1]
[1731250193400,0.15408772,79276.0,79270.0,0.22594221]
[1731250194396,0.18934254,79274.0,79251.0,0.005]
[1731250194592,0.28022972,79276.0,79248.0,0.015]
[1731250194822,0.126147,79273.0,79249.0,0.002]
[1731250195023,0.126152,79269.0,79244.0,0.18934254]
[1731250195221,0.149152,79269.0,79244.0,0.18934254]
[1731250195915,0.30323972,79269.0,79260.0,0.18934254]
[1731250196239,0.2571,79279.0,79270.0,0.000839]
[1731250196439,0.18934254,79278.0,79270.0,0.000839]
[1731250196604,0.40801772,79286.0,79270.0,0.12678121]
[1731250196813,0.18934254,79282.0,79270.0,0.12678121]
[1731250197023,0.28189272,79286.0,79270.0,0.12678121]
[1731250197231,0.15576572,79286.0,79272.0,0.18934254]
[1731250197433,0.15576572,79286.0,79273.0,0.12594221]
[1731250197640,0.18934254,79284.0,79273.0,0.12594221]
[1731250197864,0.15576572,79286.0,79273.0,0.12594221]
[1731250198204,0.15576572,79286.0,79274.0,0.18934254]
[1731250198443,0.001678,79286.0,79275.0,0.12594221]
[1731250198886,0.15408772,79278.0,79270.0,0.000839]
[1731250199145,0.15408772,79278.0,79271.0,0.31528475]
[1731250199368,0.15408772,79278.0,79270.0,0.000839]
[1731250200060,0.12614,79277.0,79270.0,0.000839]
[1731250200321,0.28022672,79278.0,79270.0,0.000839]
[1731250200494,0.15408772,79278.0,79270.0,0.000839]
[1731250200821,0.15408772,79278.0,79271.0,0.31528475]
[1731250200946,0.15576572,79286.0,79271.0,0.12594221]
[1731250201150,0.18934254,79285.0,79271.0,0.12594221]
[1731250201373,0.15576572,79286.0,79272.0,0.18934254]
[1731250201577,0.001678,79286.0,79273.0,0.12594221]
[1731250201784,0.001678,79286.0,79273.0,0.12794221]
[1731250201785,0.18934254,79285.0,79273.0,0.12794221]
[1731250201985,0.18934254,79285.0,79273.0,0.12594221]
[1731250202523,0.34343026,79285.0,79273.0,0.12594221]
[1731250202828,0.15408772,79277.0,79270.0,0.000839]
[1731250202966,0.15408772,79277.0,79271.0,0.18934254]
[1731250203169,0.126149,79271.0,79270.0,0.000839]
[1731250203367,0.149149,79271.0,79270.0,0.000839]
[1731250203792,0.22914533,79271.0,79270.0,0.000839]
[1731250203989,0.149149,79271.0,79270.0,0.000839]
[1731250205461,0.18888213,79277.0,79270.0,0.000839]
[1731250205664,0.126143,79275.0,79270.0,0.000839]
[1731250205818,0.023,79274.0,79270.0,0.000839]
[1731250206229,0.023,79276.0,79270.0,0.000839]
[1731250207051,0.2522,79279.0,79270.0,0.000839]
[1731250207251,0.023,79278.0,79270.0,0.000839]
[1731250207453,0.12614,79277.0,79270.0,0.000839]
[1731250207641,0.023,79278.0,79270.0,0.000839]
[1731250208336,0.15408772,79276.0,79270.0,0.000839]
[1731250208801,0.15108772,79276.0,79270.0,0.000839]
[1731250209003,0.126145,79274.0,79270.0,0.000839]
[1731250209231,0.15108772,79276.0,79270.0,0.000839]
[1731250210427,0.15108772,79276.0,79260.0,0.18602054]
[1731250210626,0.15108772,79276.0,79261.0,0.12594221]
[1731250213182,0.15108772,79276.0,79268.0,0.18934254]
[1731250213383,0.2522,79279.0,79264.0,0.002]
[1731250213757,0.2522,79279.0,79265.0,0.12594221]
[1731250213977,0.2522,79279.0,79278.0,0.18934254]
[1731250214171,0.001678,79286.0,79279.0,0.0765]
[1731250214348,0.001678,79286.0,79284.0,0.005]
[1731250214574,0.001678,79286.0,79285.0,0.12594221]
[1731250214912,0.001678,79286.0,79285.0,0.12794221]
[1731250215369,0.001678,79286.0,79285.0,0.23434947]
[1731250215773,0.001678,79286.0,79285.0,0.22594221]
[1731250216469,0.001678,79286.0,79271.0,0.005]
[1731250216677,0.001678,79286.0,79278.0,0.18934254]
[1731250216887,0.001678,79286.0,79285.0,0.0507]
[1731250217090,0.001678,79286.0,79285.0,0.35314221]
[1731250217313,0.001678,79286.0,79285.0,0.36514221]
[1731250218540,0.000715,79304.0,79285.0,0.36514221]
[1731250218541,0.18934254,79301.0,79288.0,0.017]
[1731250218737,0.18934254,79301.0,79288.0,0.14294221]
[1731250218855,0.18934254,79301.0,79288.0,0.23094221]
[1731250219054,0.18934254,79301.0,79288.0,0.23594221]
[1731250219281,0.18934254,79301.0,79288.0,0.23094221]
[1731250220092,0.18934254,79301.0,79288.0,0.23294221]
[1731250220302,0.18934254,79301.0,79288.0,0.61131221]
[1731250220522,0.000715,79304.0,79288.0,0.61131221]
[1731250221704,0.000715,79304.0,79288.0,0.60931221]
[1731250221849,0.000715,79304.0,79288.0,0.61131221]
[1731250222251,0.000715,79304.0,79288.0,0.77539993]
[1731250222474,0.000715,79304.0,79288.0,0.79839993]
[1731250222475,0.000796,79289.0,79288.0,0.79839993]
[1731250222674,0.000796,79289.0,79288.0,0.77539993]
[1731250223288,0.000715,79304.0,79296.0,0.005]
[1731250223502,0.000715,79304.0,79303.0,0.1939]
[1731250224185,0.000715,79304.0,79303.0,0.5622]
[1731250225258,0.000715,79304.0,79303.0,0.68814221]
[1731250226122,0.000715,79304.0,79303.0,0.50424221]
[1731250233663,0.000715,79304.0,79303.0,0.50624221]
[1731250233969,0.000715,79304.0,79303.0,0.50424221]
[1731250234392,0.000715,79304.0,79303.0,0.61124221]
[1731250235211,0.000715,79304.0,79303.0,0.69294221]
[1731250236485,0.000715,79304.0,79303.0,0.72789971]
[1731250238993,0.000715,79304.0,79303.0,0.72589971]
[1731250239196,0.000715,79304.0,79303.0,0.60424221]
[1731250240626,0.000715,79304.0,79303.0,0.3783]
[1731250240627,0.15480272,79304.0,79303.0,0.3783]
[1731250243338,0.15480272,79304.0,79303.0,0.50424221]
[1731250244095,0.000715,79304.0,79303.0,0.50424221]
[1731250246380,0.000714,79312.0,79303.0,0.50424221]
[1731250246381,0.18934254,79320.0,79303.0,0.50624221]
[1731250246587,0.18934254,79320.0,79304.0,0.12594221]
[1731250246796,0.18934254,79320.0,79305.0,0.37829]
[1731250247006,0.000714,79324.0,79306.0,0.12794221]
[1731250247273,0.000714,79324.0,79316.0,0.005]
[1731250247595,0.000714,79324.0,79314.0,0.002]
[1731250247596,0.000714,79324.0,79320.0,0.005]
[1731250247841,0.000714,79324.0,79321.0,0.12594221]
[1731250248072,0.000714,79324.0,79321.0,0.50415221]
[1731250249026,0.18934254,79335.0,79321.0,0.50415221]
[1731250249027,0.18840917,79335.0,79321.0,0.50415221]
[1731250249293,0.15408772,79343.0,79321.0,0.50415221]
[1731250249499,0.18934254,79337.0,79321.0,0.50415221]
[1731250249714,0.15408772,79336.0,79322.0,0.18934254]
[1731250249933,0.15408772,79336.0,79323.0,0.12594221]
[1731250250163,0.15408772,79336.0,79323.0,0.50414221]
[1731250251060,0.15408772,79336.0,79324.0,0.01]
[1731250251285,0.15408772,79343.0,79325.0,0.12594221]
[1731250251498,0.18934254,79340.0,79325.0,0.12594221]
[1731250251735,0.15408772,79343.0,79325.0,0.12594221]
[1731250251962,0.18934254,79342.0,79325.0,0.12594221]
[1731250252394,0.15408772,79336.0,79325.0,0.12594221]
[1731250253248,0.15408772,79336.0,79326.0,0.37819]
[1731250253484,0.15408772,79336.0,79327.0,0.12594221]
[1731250256844,0.15576572,79336.0,79327.0,0.12594221]
[1731250257288,0.001678,79336.0,79331.0,0.002]
[1731250257496,0.001678,79336.0,79332.0,0.12594221]
[1731250262094,0.001678,79336.0,79333.0,0.18934254]
[1731250262318,0.001678,79336.0,79335.0,0.12594221]
[1731250262517,0.001678,79336.0,79335.0,0.13094221]
[1731250262723,0.001678,79336.0,79335.0,0.51108221]
[1731250263163,0.001678,79336.0,79335.0,0.61608221]
[1731250263839,0.001678,79336.0,79335.0,0.65103997]
[1731250264913,0.000714,79359.0,79354.0,0.005]
[1731250265094,0.000714,79359.0,79355.0,0.12594221]
[1731250265681,0.1534842,79357.0,79355.0,0.12594221]
[1731250266365,0.000714,79359.0,79355.0,0.12594221]
[1731250266995,0.1534842,79357.0,79348.0,0.005]
[1731250267147,0.1534842,79357.0,79346.0,0.18934254]
[1731250267148,0.1534842,79357.0,79350.0,0.005]
[1731250267347,0.1534842,79357.0,79351.0,0.12594221]
[1731250269609,0.000714,79359.0,79351.0,0.12594221]
[1731250270197,0.000714,79359.0,79351.0,0.12561076]
[1731250271657,0.000714,79359.0,79354.0,0.18934254]
[1731250271811,0.000714,79359.0,79355.0,0.12594221]
[1731250272745,0.000714,79359.0,79355.0,0.12474023]
[1731250274668,0.000714,79359.0,79358.0,0.002]
[1731250274844,0.000714,79359.0,79358.0,0.12594221]
[1731250276446,0.000714,79359.0,79334.0,0.005]
[1731250276691,0.023,79357.0,79344.0,0.18934254]
[1731250276928,0.50594221,79358.0,79344.0,0.18934254]
[1731250276929,0.023,79352.0,79344.0,0.18934254]
[1731250277157,0.38,79358.0,79344.0,0.18934254]
[1731250277158,0.023,79349.0,79344.0,0.18934254]
[1731250277628,0.023,79349.0,79336.0,0.18934254]
[1731250277629,0.149018,79354.0,79336.0,0.18934254]
[1731250277847,0.1534842,79348.0,79337.0,0.12594221]
[1731250278076,0.023,79355.0,79337.0,0.12594221]
[1731250278077,0.1534842,79355.0,79337.0,0.12594221]
[1731250278276,0.023,79354.0,79337.0,0.12594221]
[1731250278779,0.023,79354.0,79335.0,0.000839]
[1731250278780,0.1534842,79340.0,79335.0,0.000839]
[1731250279005,0.126046,79336.0,79335.0,0.000839]
[1731250279208,0.149046,79336.0,79335.0,0.000839]
[1731250279669,0.023,79339.0,79335.0,0.000839]
[1731250280133,0.1534842,79340.0,79335.0,0.000839]
[1731250280317,0.1534842,79347.0,79335.0,0.12678121]
[1731250280734,0.12603,79346.0,79335.0,0.12678121]
[1731250281318,0.1534842,79347.0,79335.0,0.12678121]
[1731250281557,0.126033,79345.0,79335.0,0.12678121]
[1731250281778,0.1534842,79340.0,79335.0,0.12678121]
[1731250282097,0.126046,79336.0,79335.0,0.000839]
[1731250282313,0.149046,79336.0,79335.0,0.000839]
[1731250283340,0.208646,79336.0,79335.0,0.000839]
[1731250283724,0.203646,79336.0,79335.0,0.000839]
[1731250283983,0.198646,79336.0,79335.0,0.000839]
[1731250284319,0.0726,79336.0,79335.0,0.000839]
[1731250284516,0.198646,79336.0,79335.0,0.000839]
[1731250284739,0.0726,79336.0,79335.0,0.000839]
[1731250284947,0.198646,79336.0,79335.0,0.000839]
[1731250286041,0.208646,79336.0,79335.0,0.000839]
[1731250287699,0.198646,79336.0,79335.0,0.000839]
[1731250288220,0.2519,79341.0,79335.0,0.000839]
[1731250288814,0.1534842,79340.0,79335.0,0.000839]
[1731250290350,0.149041,79339.0,79335.0,0.000839]
[1731250290552,0.149046,79336.0,79335.0,0.000839]
[1731250291673,0.023,79336.0,79335.0,0.000839]
[1731250291876,0.023,79339.0,79335.0,0.000839]
[1731250295396,0.1534842,79340.0,79335.0,0.000839]
[1731250298853,0.2519,79341.0,79336.0,0.12594221]
[1731250300851,0.4053842,79341.0,79336.0,0.12594221]
[1731250301623,0.126046,79336.0,79335.0,0.000839]
[1731250301821,0.149046,79336.0,79335.0,0.000839]
[1731250306156,0.126046,79336.0,79335.0,0.000839]
[1731250306372,0.136046,79336.0,79335.0,0.000839]
[1731250306588,0.378207,79322.0,79321.0,0.18934254]
[1731250306828,0.126068,79322.0,79321.0,0.18934254]
[1731250307034,0.252128,79325.0,79314.0,0.000839]
[1731250307240,0.2795542,79321.0,79314.0,0.000839]
[1731250307460,0.1534842,79321.0,79314.0,0.000839]
[1731250307672,0.33842154,79315.0,79314.0,0.000839]
[1731250307882,0.149079,79315.0,79314.0,0.000839]
[1731250308179,0.238679,79315.0,79314.0,0.000839]
[1731250309093,0.149079,79315.0,79314.0,0.000839]
[1731250309302,0.504029,79325.0,79314.0,0.000839]
[1731250309515,0.126079,79315.0,79314.0,0.000839]
[1731250310398,0.116079,79315.0,79314.0,0.000839]
[1731250311038,0.139079,79315.0,79314.0,0.000839]
[1731250311269,0.149079,79315.0,79314.0,0.000839]
[1731250313699,0.144079,79315.0,79314.0,0.000839]
[1731250313930,0.023,79319.0,79314.0,0.000839]
[1731250314152,0.023,79315.0,79314.0,0.000839]
[1731250314830,0.023,79317.0,79314.0,0.000839]
[1731250315468,0.39502154,79315.0,79314.0,0.000839]
[1731250315648,0.228679,79315.0,79314.0,0.000839]
[1731250317327,0.01,79311.0,79289.0,0.000839]
[1731250317476,0.033,79310.0,79303.0,0.18934254]
[1731250317678,0.126114,79294.0,79289.0,0.000839]
[1731250317946,0.126119,79290.0,79289.0,0.000839]
[1731250318574,0.149119,79290.0,79289.0,0.000839]
[1731250318985,0.480619,79290.0,79289.0,0.000839]
[1731250319138,0.6341032,79290.0,79289.0,0.000839]
[1731250319344,0.6391032,79290.0,79289.0,0.000839]
[1731250320703,0.6441032,79290.0,79289.0,0.000839]
[1731250320841,0.3922032,79290.0,79289.0,0.000839]
[1731250321053,0.46158172,79290.0,79289.0,0.000839]
[1731250321260,0.87180853,79290.0,79289.0,0.000839]
[1731250321906,0.4334036,79290.0,79289.0,0.000839]
[1731250322993,0.56934581,79290.0,79289.0,0.000839]
[1731250326183,0.126133,79281.0,79280.0,0.18934254]
[1731250326389,0.3026172,79281.0,79280.0,0.18934254]
[1731250326591,0.023,79280.0,79271.0,0.005]
[1731250326787,0.023,79278.0,79271.0,0.005]
[1731250326995,0.149138,79278.0,79271.0,0.005]
[1731250327626,0.023,79280.0,79271.0,0.005]
[1731250327826,0.023,79284.0,79271.0,0.005]
[1731250328245,0.1534842,79283.0,79271.0,0.005]
[1731250328764,0.1534842,79283.0,79270.0,0.005]
[1731250328930,0.1534842,79283.0,79272.0,0.005]
[1731250330941,0.1534842,79276.0,79272.0,0.005]
[1731250331170,0.1534842,79276.0,79270.0,0.13094221]
[1731250331359,0.1534842,79276.0,79271.0,0.13094221]
[1731250331531,0.1534842,79276.0,79272.0,0.005]
[1731250332115,0.1534842,79276.0,79271.0,0.12594221]
[1731250332319,0.1534842,79276.0,79271.0,0.13094221]
[1731250332717,0.095912,79289.0,79283.0,0.005]
[1731250332880,0.095912,79289.0,79286.0,0.005]
[1731250334175,0.252268,79281.0,79276.0,0.0793]
[1731250334389,0.1534842,79277.0,79276.0,0.0793]
[1731250334544,0.1534842,79277.0,79275.0,0.005]
[1731250334744,0.10258325,79276.0,79275.0,0.005]
[1731250335241,0.10258325,79276.0,79271.0,0.005]
[1731250335456,0.18934254,79284.0,79271.0,0.005]
[1731250335457,0.10258325,79272.0,79271.0,0.005]
[1731250335659,0.10258325,79272.0,79268.0,0.20524221]
[1731250335920,0.10258325,79272.0,79271.0,0.005]
[1731250336154,0.10258325,79272.0,79268.0,0.20524221]
[1731250336533,0.10258325,79272.0,79269.0,0.005]
[1731250337061,0.10258325,79272.0,79268.0,0.20524221]
[1731250337700,0.10258325,79272.0,79268.0,0.12594221]
[1731250337910,0.10258325,79272.0,79269.0,0.005]
[1731250339100,0.10258325,79272.0,79268.0,0.12594221]
[1731250339313,0.10258325,79272.0,79261.0,0.0793]
[1731250339314,0.2051665,79272.0,79261.0,0.0793]
[1731250339513,0.10258325,79262.0,79260.0,0.000839]
[1731250339735,0.126165,79261.0,79260.0,0.000839]
[1731250339911,0.10258325,79262.0,79260.0,0.000839]
[1731250340274,0.149165,79261.0,79260.0,0.000839]
[1731250340666,0.154165,79261.0,79260.0,0.000839]
[1731250340870,0.149165,79261.0,79260.0,0.000839]
[1731250342066,0.154165,79261.0,79260.0,0.000839]
[1731250342998,0.30816337,79261.0,79260.0,0.000839]
[1731250345392,0.149165,79261.0,79260.0,0.000839]
[1731250345931,0.2521,79262.0,79260.0,0.000839]
[1731250346996,0.126165,79261.0,79260.0,0.000839]
[1731250347341,0.149165,79261.0,79260.0,0.000839]
[1731250347897,0.2521,79262.0,79260.0,0.000839]
[1731250348903,0.126165,79261.0,79260.0,0.000839]
[1731250349337,0.2521,79262.0,79260.0,0.000839]
[1731250349757,0.149165,79261.0,79260.0,0.000839]
[1731250350728,0.023,79261.0,79260.0,0.000839]
[1731250350955,0.2521,79262.0,79260.0,0.000839]
[1731250351163,0.378264,79262.0,79260.0,0.000839]
[1731250351341,0.126165,79261.0,79260.0,0.000839]
[1731250351546,0.149165,79261.0,79260.0,0.000839]
[1731250352618,0.2521,79262.0,79260.0,0.000839]
[1731250354644,0.378264,79262.0,79260.0,0.000839]
[1731250354845,0.2521,79262.0,79260.0,0.000839]
[1731250355034,0.2521,79262.0,79246.0,0.27424254]
[1731250355035,0.2521,79262.0,79246.0,0.25650954]
[1731250355235,0.2521,79262.0,79247.0,0.12594221]
[1731250355432,0.2521,79262.0,79251.0,0.005]
[1731250355642,0.2521,79262.0,79252.0,0.12594221]
[1731250356895,0.2521,79262.0,79252.0,0.13094221]
[1731250358904,0.2521,79262.0,79257.0,0.005]
[1731250359107,0.2521,79262.0,79258.0,0.13094221]
[1731250359108,0.18934254,79261.0,79258.0,0.13094221]
[1731250359353,0.2521,79262.0,79258.0,0.13094221]
[1731250360102,0.2521,79262.0,79258.0,0.005]
[1731250361950,0.2521,79262.0,79248.0,0.23474254]
[1731250362112,0.2521,79262.0,79258.0,0.005]
[1731250362113,0.378264,79262.0,79258.0,0.005]
[1731250362517,0.378264,79262.0,79257.0,0.005]
[1731250362792,0.2521,79262.0,79253.0,0.005]
[1731250363008,0.10262645,79258.0,79257.0,0.005]
[1731250363583,0.10262645,79258.0,79254.0,0.13094221]
[1731250363809,0.10262645,79258.0,79257.0,0.005]
[1731250364336,0.07962645,79258.0,79257.0,0.005]
[1731250365375,0.07962645,79258.0,79252.0,0.005]
[1731250365922,0.07962645,79258.0,79246.0,0.0799]
[1731250366149,0.10262645,79252.0,79250.0,0.005]
[1731250366273,0.10262645,79252.0,79247.0,0.12594221]
[1731250366690,0.22880645,79252.0,79246.0,0.005]
[1731250366898,0.10262645,79252.0,79246.0,0.005]
[1731250367300,0.22880645,79252.0,79246.0,0.005]
[1731250367529,0.10262645,79252.0,79246.0,0.005]
[1731250367960,0.126181,79251.0,79246.0,0.005]
[1731250368371,0.10262645,79248.0,79240.0,0.005]
[1731250368584,0.10262645,79240.0,79236.0,0.005]
[1731250368795,0.10262645,79240.0,79236.0,0.13094221]
[1731250368995,0.10262645,79240.0,79239.0,0.005]
[1731250369257,0.10262645,79246.0,79239.0,0.005]
[1731250369484,0.10262645,79246.0,79240.0,0.005]
[1731250370663,0.22881545,79246.0,79240.0,0.005]
[1731250370861,0.10262645,79246.0,79240.0,0.005]
[1731250371627,0.10262645,79246.0,79236.0,0.12594221]
[1731250372063,0.10262645,79246.0,79240.0,0.005]
[1731250372218,0.10262645,79246.0,79237.0,0.005]
[1731250372575,0.10262645,79246.0,79240.0,0.005]
[1731250374044,0.10262645,79246.0,79237.0,0.005]
[1731250374229,0.10262645,79246.0,79240.0,0.005]
[1731250376120,0.10262645,79246.0,79241.0,0.12594221]
[1731250376287,0.22880445,79253.0,79241.0,0.12594221]
[1731250376454,0.18934254,79250.0,79241.0,0.12594221]
[1731250378009,0.10262645,79247.0,79241.0,0.12594221]
[1731250378487,0.22881345,79247.0,79241.0,0.12594221]
[1731250378631,0.10262645,79247.0,79240.0,0.005839]
[1731250378955,0.10262645,79241.0,79240.0,0.005839]
[1731250379346,0.07962645,79241.0,79240.0,0.000839]
[1731250379549,0.07962645,79241.0,79240.0,0.005839]
[1731250380423,0.10262645,79247.0,79240.0,0.005839]
[1731250380627,0.10262645,79247.0,79241.0,0.005]
[1731250382164,0.252336,79260.0,79241.0,0.005]
[1731250382165,0.10262645,79254.0,79241.0,0.005]
[1731250382367,0.10262645,79254.0,79240.0,0.005839]
[1731250382627,0.10262645,79254.0,79241.0,0.005]
[1731250383141,0.18934254,79257.0,79247.0,0.005]
[1731250383364,0.18934254,79257.0,79248.0,0.12594221]
[1731250383544,0.10262645,79253.0,79247.0,0.005]
[1731250384872,0.18934254,79251.0,79247.0,0.005]
[1731250385050,0.22880445,79253.0,79247.0,0.005]
[1731250385298,0.10262645,79253.0,79247.0,0.005]
[1731250386210,0.22880445,79253.0,79247.0,0.005]
[1731250386530,0.10262645,79253.0,79247.0,0.005]
[1731250387842,0.03469592,79258.0,79251.0,0.005]
[1731250388057,0.19102054,79258.0,79251.0,0.005]
[1731250388905,0.001678,79258.0,79251.0,0.005]
[1731250389133,0.10262645,79254.0,79251.0,0.005839]
[1731250390274,0.22880345,79254.0,79251.0,0.005839]
[1731250390546,0.126179,79252.0,79251.0,0.000839]
[1731250391932,0.22882345,79241.0,79240.0,0.000839]
[1731250392142,0.10262645,79235.0,79234.0,0.18960954]
[1731250392348,0.22883245,79235.0,79234.0,0.18960954]
[1731250392579,0.22883245,79235.0,79234.0,0.000267]
[1731250392791,0.3314589,79235.0,79234.0,0.000267]
[1731250392994,0.10262645,79219.0,79218.0,0.005]
[1731250393197,0.126229,79221.0,79214.0,0.0805]
[1731250393425,0.10262645,79220.0,79218.0,0.005]
[1731250393632,0.10262645,79220.0,79219.0,0.005]
[1731250393838,0.10262645,79220.0,79218.0,0.005]
[1731250394044,0.10262645,79220.0,79219.0,0.005]
[1731250394860,0.10262645,79220.0,79218.0,0.005]
[1731250395067,0.10262645,79220.0,79216.0,0.005]
[1731250395285,0.10262645,79220.0,79209.0,0.047628]
[1731250395286,0.126234,79218.0,79212.0,0.005]
[1731250395493,0.126234,79218.0,79207.0,0.0805]
[1731250395494,0.39459544,79213.0,79202.0,0.005]
[1731250395697,0.005,79214.0,79202.0,0.005]
[1731250395698,0.10262645,79203.0,79202.0,0.005]
[1731250396298,0.10262645,79209.0,79204.0,0.005]
[1731250397011,0.10262645,79209.0,79193.0,0.001428]
[1731250397012,0.126253,79206.0,79202.0,0.005]
[1731250397212,0.10262645,79203.0,79202.0,0.005]
[1731250398314,0.22888345,79203.0,79202.0,0.005]
[1731250399664,0.10262645,79203.0,79202.0,0.005]
[1731250400104,0.22888345,79203.0,79202.0,0.005]
[1731250400685,0.10262645,79203.0,79202.0,0.005]
[1731250401502,0.22888345,79203.0,79202.0,0.005]
[1731250402293,0.10262645,79203.0,79202.0,0.005]
[1731250402719,0.126269,79196.0,79193.0,0.001428]
[1731250402879,0.23389545,79196.0,79193.0,0.001428]
[1731250403102,0.48599545,79196.0,79193.0,0.001428]
[1731250403734,0.48599545,79196.0,79193.0,0.006428]
[1731250404117,0.48599545,79196.0,79193.0,0.001428]
[1731250404557,0.383369,79196.0,79193.0,0.006428]
[1731250404789,0.378369,79196.0,79193.0,0.006428]
[1731250405015,0.2521,79196.0,79194.0,0.005]
[1731250406054,0.2521,79196.0,79193.0,0.001428]
[1731250406256,0.378369,79196.0,79193.0,0.001428]
[1731250406475,0.383369,79196.0,79193.0,0.001428]
[1731250406680,0.63811121,79196.0,79193.0,0.001428]
[1731250407320,0.383369,79196.0,79193.0,0.001428]
[1731250408813,0.50931121,79196.0,79193.0,0.001428]
[1731250409013,0.63444104,79196.0,79193.0,0.001428]
[1731250410782,0.50931121,79196.0,79193.0,0.001428]
[1731250410977,0.378369,79196.0,79193.0,0.001428]
[1731250411547,0.2521,79196.0,79193.0,0.001428]
[1731250413438,0.378369,79196.0,79193.0,0.001428]
[1731250415551,0.2521,79196.0,79193.0,0.001428]
[1731250419366,0.32545185,79196.0,79193.0,0.001428]
[1731250419573,0.45172085,79196.0,79193.0,0.001428]
[1731250420188,0.22889845,79194.0,79193.0,0.0004537]
[1731250421194,0.10262645,79194.0,79193.0,0.0004537]
[1731250421595,0.22889845,79194.0,79193.0,0.0004537]
[1731250422049,0.10262645,79194.0,79193.0,0.0004537]
[1731250422293,0.35472645,79196.0,79193.0,0.0004537]
[1731250424053,0.38381364,79196.0,79193.0,0.0004537]
[1731250424261,0.126272,79194.0,79193.0,0.0004537]
[1731250429171,0.131272,79194.0,79193.0,0.0004537]
[1731250431613,0.45195642,79194.0,79193.0,0.0004537]
[1731250434741,0.32601421,79194.0,79193.0,0.0004537]